{"text_format":"1","workbook":"xlsx","n_sheets":11,"sheets":["Department Chart","Station 1","Station 2","Station 3","Station 4","Station 5","Station 6","Station 7","Station 8","Station 9","Station 10"],"not_rendered":{"charts":0,"images":14,"macros":1,"external_links":0,"defined_names":55,"comments":0,"pivot_tables":0},"unopened":[],"bounds":{"document_bytes":16777216,"sheet_cells":100000,"rows_first":2000,"rows_last":500,"rows_between":2000,"halvings":0,"cell_chars":16384,"cell_head_chars":4096},"cells_cut":0,"cells_raw":0,"read":"whole","date_system":"1900"}

{"sheet":"Department Chart","index":0,"n_rows":16,"n_cols":12,"rows_kept":16,"cut":false,"hidden":false,"merged":[[2,1,3,11]]}
[]
[]
[null,"Job Rotation Evaluator"]
[]
[]
[null,"Department 100","Station 1","Station 2","Station 3","Station 4","Station 5","Station 6","Station 7","Station 8","Station 9","Station 10"]
[null,"Neck / Upper Back",{"$f":"'Station 1'!I8","v":{"$error":"#VALUE!"}},{"$f":"'Station 2'!I8","v":{"$error":"#VALUE!"}},{"$f":"'Station 3'!I8","v":{"$error":"#VALUE!"}},{"$f":"'Station 4'!I8","v":{"$error":"#VALUE!"}},{"$f":"'Station 5'!I8","v":{"$error":"#VALUE!"}},{"$f":"'Station 6'!I8","v":{"$error":"#VALUE!"}},{"$f":"'Station 7'!I8","v":{"$error":"#VALUE!"}},{"$f":"'Station 8'!I8","v":{"$error":"#VALUE!"}},{"$f":"'Station 9'!I8","v":{"$error":"#VALUE!"}},{"$f":"'Station 10'!I8","v":{"$error":"#VALUE!"}}]
[null,"R Upper Arm / Shoulder",{"$f":"'Station 1'!I9","v":{"$error":"#VALUE!"}},{"$f":"'Station 2'!I9","v":{"$error":"#VALUE!"}},{"$f":"'Station 3'!I9","v":{"$error":"#VALUE!"}},{"$f":"'Station 4'!I9","v":{"$error":"#VALUE!"}},{"$f":"'Station 5'!I9","v":{"$error":"#VALUE!"}},{"$f":"'Station 6'!I9","v":{"$error":"#VALUE!"}},{"$f":"'Station 7'!I9","v":{"$error":"#VALUE!"}},{"$f":"'Station 8'!I9","v":{"$error":"#VALUE!"}},{"$f":"'Station 9'!I9","v":{"$error":"#VALUE!"}},{"$f":"'Station 10'!I9","v":{"$error":"#VALUE!"}}]
[null,"L Upper Arm / Shoulder",{"$f":"'Station 1'!I10","v":{"$error":"#VALUE!"}},{"$f":"'Station 2'!I10","v":{"$error":"#VALUE!"}},{"$f":"'Station 3'!I10","v":{"$error":"#VALUE!"}},{"$f":"'Station 4'!I10","v":{"$error":"#VALUE!"}},{"$f":"'Station 5'!I10","v":{"$error":"#VALUE!"}},{"$f":"'Station 6'!I10","v":{"$error":"#VALUE!"}},{"$f":"'Station 7'!I10","v":{"$error":"#VALUE!"}},{"$f":"'Station 8'!I10","v":{"$error":"#VALUE!"}},{"$f":"'Station 9'!I10","v":{"$error":"#VALUE!"}},{"$f":"'Station 10'!I10","v":{"$error":"#VALUE!"}}]
[null,"R Forearm / Elbow",{"$f":"'Station 1'!I11","v":{"$error":"#VALUE!"}},{"$f":"'Station 2'!I11","v":{"$error":"#VALUE!"}},{"$f":"'Station 3'!I11","v":{"$error":"#VALUE!"}},{"$f":"'Station 4'!I11","v":{"$error":"#VALUE!"}},{"$f":"'Station 5'!I11","v":{"$error":"#VALUE!"}},{"$f":"'Station 6'!I11","v":{"$error":"#VALUE!"}},{"$f":"'Station 7'!I11","v":{"$error":"#VALUE!"}},{"$f":"'Station 8'!I11","v":{"$error":"#VALUE!"}},{"$f":"'Station 9'!I11","v":{"$error":"#VALUE!"}},{"$f":"'Station 10'!I11","v":{"$error":"#VALUE!"}}]
[null,"L Forearm / Elbow",{"$f":"'Station 1'!I12","v":{"$error":"#VALUE!"}},{"$f":"'Station 2'!I12","v":{"$error":"#VALUE!"}},{"$f":"'Station 3'!I12","v":{"$error":"#VALUE!"}},{"$f":"'Station 4'!I12","v":{"$error":"#VALUE!"}},{"$f":"'Station 5'!I12","v":{"$error":"#VALUE!"}},{"$f":"'Station 6'!I12","v":{"$error":"#VALUE!"}},{"$f":"'Station 7'!I12","v":{"$error":"#VALUE!"}},{"$f":"'Station 8'!I12","v":{"$error":"#VALUE!"}},{"$f":"'Station 9'!I12","v":{"$error":"#VALUE!"}},{"$f":"'Station 10'!I12","v":{"$error":"#VALUE!"}}]
[null,"R Wrist / Fingers",{"$f":"'Station 1'!I13","v":{"$error":"#VALUE!"}},{"$f":"'Station 2'!I13","v":{"$error":"#VALUE!"}},{"$f":"'Station 3'!I13","v":{"$error":"#VALUE!"}},{"$f":"'Station 4'!I13","v":{"$error":"#VALUE!"}},{"$f":"'Station 5'!I13","v":{"$error":"#VALUE!"}},{"$f":"'Station 6'!I13","v":{"$error":"#VALUE!"}},{"$f":"'Station 7'!I13","v":{"$error":"#VALUE!"}},{"$f":"'Station 8'!I13","v":{"$error":"#VALUE!"}},{"$f":"'Station 9'!I13","v":{"$error":"#VALUE!"}},{"$f":"'Station 10'!I13","v":{"$error":"#VALUE!"}}]
[null,"L Wrist / Fingers",{"$f":"'Station 1'!I14","v":{"$error":"#VALUE!"}},{"$f":"'Station 2'!I14","v":{"$error":"#VALUE!"}},{"$f":"'Station 3'!I14","v":{"$error":"#VALUE!"}},{"$f":"'Station 4'!I14","v":{"$error":"#VALUE!"}},{"$f":"'Station 5'!I14","v":{"$error":"#VALUE!"}},{"$f":"'Station 6'!I14","v":{"$error":"#VALUE!"}},{"$f":"'Station 7'!I14","v":{"$error":"#VALUE!"}},{"$f":"'Station 8'!I14","v":{"$error":"#VALUE!"}},{"$f":"'Station 9'!I14","v":{"$error":"#VALUE!"}},{"$f":"'Station 10'!I14","v":{"$error":"#VALUE!"}}]
[null,"Trunk / Lower Back",{"$f":"'Station 1'!I15","v":{"$error":"#VALUE!"}},{"$f":"'Station 2'!I15","v":{"$error":"#VALUE!"}},{"$f":"'Station 3'!I15","v":{"$error":"#VALUE!"}},{"$f":"'Station 4'!I15","v":{"$error":"#VALUE!"}},{"$f":"'Station 5'!I15","v":{"$error":"#VALUE!"}},{"$f":"'Station 6'!I15","v":{"$error":"#VALUE!"}},{"$f":"'Station 7'!I15","v":{"$error":"#VALUE!"}},{"$f":"'Station 8'!I15","v":{"$error":"#VALUE!"}},{"$f":"'Station 9'!I15","v":{"$error":"#VALUE!"}},{"$f":"'Station 10'!I15","v":{"$error":"#VALUE!"}}]
[null,"Legs (foot pedal)",{"$f":"'Station 1'!I16","v":{"$error":"#VALUE!"}},{"$f":"'Station 2'!I16","v":{"$error":"#VALUE!"}},{"$f":"'Station 3'!I16","v":{"$error":"#VALUE!"}},{"$f":"'Station 4'!I16","v":{"$error":"#VALUE!"}},{"$f":"'Station 5'!I16","v":{"$error":"#VALUE!"}},{"$f":"'Station 6'!I16","v":{"$error":"#VALUE!"}},{"$f":"'Station 7'!I16","v":{"$error":"#VALUE!"}},{"$f":"'Station 8'!I16","v":{"$error":"#VALUE!"}},{"$f":"'Station 9'!I16","v":{"$error":"#VALUE!"}},{"$f":"'Station 10'!I16","v":{"$error":"#VALUE!"}}]
[null," "]

{"sheet":"Station 1","index":1,"n_rows":21,"n_cols":15,"rows_kept":21,"cut":false,"hidden":false,"merged":[[2,1,3,8]]}
[]
[]
[null,"Job Rotation Evaluator"]
[null,null,null,null,null,null,null,null,null,null,"Lists"]
[null,null,null,null,null,null,null,null,null,null,null,null,"Effort Values","Posture Values","Exertions / Minute Values"]
[null,"Station 1",null,null,null,null,null,null,null,null,"Relaxed Effort (barely noticeable)",null,"","",""]
[null,"Muscle Group","Exertion Effort","Rating","Exertion Posture","Rating","Exertions / Minute","Rating","Exertion Index",null,"Noticeable Effort (definite effort)",null,"","",""]
[null,"Neck / Upper Back",null,{"$f":"IF(M6=\"Relaxed Effort (barely noticeable)\",1,IF(M6=\"Noticeable Effort (definite effort)\",3,IF(M6=\"Obvious Effort (unchanged expression)\",6,IF(M6=\"Substantial Effort (changed expression)\",9, IF(M6=\"Maximal Effort (changed body mechanics)\", 13, \"\")))))","v":""},null,{"$f":"IF(N6=\"Near Neutral\", 1, IF(N6=\"Slight Deviation\", 1, IF(N6=\"Marked Deviation\", 1.5, IF(N6=\"Extreme Deviation\", 2, \"\"))))","v":""},null,{"$f":"IF(O6=\"Less than 4 / minute\", 0.5, IF(O6=\"4 -8 / minute\", 1, IF(O6=\"9 - 14 / minute\", 1.5, IF(O6=\"15 - 19 / minute\", 2, IF(O6=\"More than 20 / minute\", 3, \"\")))))","v":""},{"$f":"D8*F8*H8","v":{"$error":"#VALUE!"}},null,"Obvious Effort (unchanged expression)",null,"","",""]
[null,"R Upper Arm / Shoulder",null,{"$f":"IF(M7=\"Relaxed Effort (barely noticeable)\",1,IF(M7=\"Noticeable Effort (definite effort)\",3,IF(M7=\"Obvious Effort (unchanged expression)\",6,IF(M7=\"Substantial Effort (changed expression)\",9, IF(M7=\"Maximal Effort (changed body mechanics)\", 13, \"\")))))","v":""},null,{"$f":"IF(N7=\"Near Neutral\", 1, IF(N7=\"Slight Deviation\", 1, IF(N7=\"Marked Deviation\", 1.5, IF(N7=\"Extreme Deviation\", 2, \"\"))))","v":""},null,{"$f":"IF(O7=\"Less than 4 / minute\", 0.5, IF(O7=\"4 -8 / minute\", 1, IF(O7=\"9 - 14 / minute\", 1.5, IF(O7=\"15 - 19 / minute\", 2, IF(O7=\"More than 20 / minute\", 3, \"\")))))","v":""},{"$error":"#VALUE!"},null,"Substantial Effort (changed expression)",null,"","",""]
[null,"L Upper Arm / Shoulder",null,"",null,"",null,"",{"$error":"#VALUE!"},null,"Maximal Effort (changed body mechanics)",null,"","",""]
[null,"R Forearm / Elbow",null,"",null,"",null,"",{"$error":"#VALUE!"},null,null,null,"","",""]
[null,"L Forearm / Elbow",null,"",null,"",null,"",{"$error":"#VALUE!"},null,"Near Neutral",null,"","",""]
[null,"R Wrist / Fingers",null,"",null,"",null,"",{"$error":"#VALUE!"},null,"Slight Deviation",null,"","",""]
[null,"L Wrist / Fingers",null,"",null,"",null,"",{"$error":"#VALUE!"},null,"Marked Deviation",null,"","",""]
[null,"Trunk / Lower Back",null,"",null,"",null,"",{"$error":"#VALUE!"},null,"Extreme Deviation"]
[null,"Legs (foot pedal)",null,"",null,"",null,"",{"$error":"#VALUE!"}]
[null,null,null,null,null,null,null,null,null,null,"Less than 4 / minute"]
[null,null,null,null,null,null,null,null,null,null,"4 -8 / minute"]
[null,null,null,null,null,null,null,null,null,null,"9 - 14 / minute"]
[null,null,null,null,null,null,null,null,null,null,"15 - 19 / minute"]
[null,null,null,null,null,null,null,null,null,null,"More than 20 / minute"]

{"sheet":"Station 2","index":2,"n_rows":21,"n_cols":15,"rows_kept":21,"cut":false,"hidden":false,"merged":[[2,1,3,8]]}
[]
[]
[null,"Job Rotation Evaluator"]
[null,null,null,null,null,null,null,null,null,null,"Lists"]
[null,null,null,null,null,null,null,null,null,null,null,null,"Effort Values","Posture Values","Exertions / Minute Values"]
[null,"Station 2",null,null,null,null,null,null,null,null,"Relaxed Effort (barely noticeable)",null,"","",""]
[null,"Muscle Group","Exertion Effort","Rating","Exertion Posture","Rating","Exertions / Minute","Rating","Exertion Index",null,"Noticeable Effort (definite effort)",null,"","",""]
[null,"Neck / Upper Back",null,{"$f":"IF(M6=\"Relaxed Effort (barely noticeable)\",1,IF(M6=\"Noticeable Effort (definite effort)\",3,IF(M6=\"Obvious Effort (unchanged expression)\",6,IF(M6=\"Substantial Effort (changed expression)\",9, IF(M6=\"Maximal Effort (changed body mechanics)\", 13, \"\")))))","v":""},null,{"$f":"IF(N6=\"Near Neutral\", 1, IF(N6=\"Slight Deviation\", 1, IF(N6=\"Marked Deviation\", 1.5, IF(N6=\"Extreme Deviation\", 2, \"\"))))","v":""},null,{"$f":"IF(O6=\"Less than 4 / minute\", 0.5, IF(O6=\"4 -8 / minute\", 1, IF(O6=\"9 - 14 / minute\", 1.5, IF(O6=\"15 - 19 / minute\", 2, IF(O6=\"More than 20 / minute\", 3, \"\")))))","v":""},{"$f":"D8*F8*H8","v":{"$error":"#VALUE!"}},null,"Obvious Effort (unchanged expression)",null,"","",""]
[null,"R Upper Arm / Shoulder",null,{"$f":"IF(M7=\"Relaxed Effort (barely noticeable)\",1,IF(M7=\"Noticeable Effort (definite effort)\",3,IF(M7=\"Obvious Effort (unchanged expression)\",6,IF(M7=\"Substantial Effort (changed expression)\",9, IF(M7=\"Maximal Effort (changed body mechanics)\", 13, \"\")))))","v":""},null,{"$f":"IF(N7=\"Near Neutral\", 1, IF(N7=\"Slight Deviation\", 1, IF(N7=\"Marked Deviation\", 1.5, IF(N7=\"Extreme Deviation\", 2, \"\"))))","v":""},null,{"$f":"IF(O7=\"Less than 4 / minute\", 0.5, IF(O7=\"4 -8 / minute\", 1, IF(O7=\"9 - 14 / minute\", 1.5, IF(O7=\"15 - 19 / minute\", 2, IF(O7=\"More than 20 / minute\", 3, \"\")))))","v":""},{"$error":"#VALUE!"},null,"Substantial Effort (changed expression)",null,"","",""]
[null,"L Upper Arm / Shoulder",null,"",null,"",null,"",{"$error":"#VALUE!"},null,"Maximal Effort (changed body mechanics)",null,"","",""]
[null,"R Forearm / Elbow",null,"",null,"",null,"",{"$error":"#VALUE!"},null,null,null,"","",""]
[null,"L Forearm / Elbow",null,"",null,"",null,"",{"$error":"#VALUE!"},null,"Near Neutral",null,"","",""]
[null,"R Wrist / Fingers",null,"",null,"",null,"",{"$error":"#VALUE!"},null,"Slight Deviation",null,"","",""]
[null,"L Wrist / Fingers",null,"",null,"",null,"",{"$error":"#VALUE!"},null,"Marked Deviation",null,"","",""]
[null,"Trunk / Lower Back",null,"",null,"",null,"",{"$error":"#VALUE!"},null,"Extreme Deviation"]
[null,"Legs (foot pedal)",null,"",null,"",null,"",{"$error":"#VALUE!"}]
[null,null,null,null,null,null,null,null,null,null,"Less than 4 / minute"]
[null,null,null,null,null,null,null,null,null,null,"4 -8 / minute"]
[null,null,null,null,null,null,null,null,null,null,"9 - 14 / minute"]
[null,null,null,null,null,null,null,null,null,null,"15 - 19 / minute"]
[null,null,null,null,null,null,null,null,null,null,"More than 20 / minute"]

{"sheet":"Station 3","index":3,"n_rows":21,"n_cols":15,"rows_kept":21,"cut":false,"hidden":false,"merged":[[2,1,3,8]]}
[]
[]
[null,"Job Rotation Evaluator"]
[null,null,null,null,null,null,null,null,null,null,"Lists"]
[null,null,null,null,null,null,null,null,null,null,null,null,"Effort Values","Posture Values","Exertions / Minute Values"]
[null,"Station 3",null,null,null,null,null,null,null,null,"Relaxed Effort (barely noticeable)",null,"","",""]
[null,"Muscle Group","Exertion Effort","Rating","Exertion Posture","Rating","Exertions / Minute","Rating","Exertion Index",null,"Noticeable Effort (definite effort)",null,"","",""]
[null,"Neck / Upper Back",null,{"$f":"IF(M6=\"Relaxed Effort (barely noticeable)\",1,IF(M6=\"Noticeable Effort (definite effort)\",3,IF(M6=\"Obvious Effort (unchanged expression)\",6,IF(M6=\"Substantial Effort (changed expression)\",9, IF(M6=\"Maximal Effort (changed body mechanics)\", 13, \"\")))))","v":""},null,{"$f":"IF(N6=\"Near Neutral\", 1, IF(N6=\"Slight Deviation\", 1, IF(N6=\"Marked Deviation\", 1.5, IF(N6=\"Extreme Deviation\", 2, \"\"))))","v":""},null,{"$f":"IF(O6=\"Less than 4 / minute\", 0.5, IF(O6=\"4 -8 / minute\", 1, IF(O6=\"9 - 14 / minute\", 1.5, IF(O6=\"15 - 19 / minute\", 2, IF(O6=\"More than 20 / minute\", 3, \"\")))))","v":""},{"$f":"D8*F8*H8","v":{"$error":"#VALUE!"}},null,"Obvious Effort (unchanged expression)",null,"","",""]
[null,"R Upper Arm / Shoulder",null,{"$f":"IF(M7=\"Relaxed Effort (barely noticeable)\",1,IF(M7=\"Noticeable Effort (definite effort)\",3,IF(M7=\"Obvious Effort (unchanged expression)\",6,IF(M7=\"Substantial Effort (changed expression)\",9, IF(M7=\"Maximal Effort (changed body mechanics)\", 13, \"\")))))","v":""},null,{"$f":"IF(N7=\"Near Neutral\", 1, IF(N7=\"Slight Deviation\", 1, IF(N7=\"Marked Deviation\", 1.5, IF(N7=\"Extreme Deviation\", 2, \"\"))))","v":""},null,{"$f":"IF(O7=\"Less than 4 / minute\", 0.5, IF(O7=\"4 -8 / minute\", 1, IF(O7=\"9 - 14 / minute\", 1.5, IF(O7=\"15 - 19 / minute\", 2, IF(O7=\"More than 20 / minute\", 3, \"\")))))","v":""},{"$error":"#VALUE!"},null,"Substantial Effort (changed expression)",null,"","",""]
[null,"L Upper Arm / Shoulder",null,"",null,"",null,"",{"$error":"#VALUE!"},null,"Maximal Effort (changed body mechanics)",null,"","",""]
[null,"R Forearm / Elbow",null,"",null,"",null,"",{"$error":"#VALUE!"},null,null,null,"","",""]
[null,"L Forearm / Elbow",null,"",null,"",null,"",{"$error":"#VALUE!"},null,"Near Neutral",null,"","",""]
[null,"R Wrist / Fingers",null,"",null,"",null,"",{"$error":"#VALUE!"},null,"Slight Deviation",null,"","",""]
[null,"L Wrist / Fingers",null,"",null,"",null,"",{"$error":"#VALUE!"},null,"Marked Deviation",null,"","",""]
[null,"Trunk / Lower Back",null,"",null,"",null,"",{"$error":"#VALUE!"},null,"Extreme Deviation"]
[null,"Legs (foot pedal)",null,"",null,"",null,"",{"$error":"#VALUE!"}]
[null,null,null,null,null,null,null,null,null,null,"Less than 4 / minute"]
[null,null,null,null,null,null,null,null,null,null,"4 -8 / minute"]
[null,null,null,null,null,null,null,null,null,null,"9 - 14 / minute"]
[null,null,null,null,null,null,null,null,null,null,"15 - 19 / minute"]
[null,null,null,null,null,null,null,null,null,null,"More than 20 / minute"]

{"sheet":"Station 4","index":4,"n_rows":21,"n_cols":15,"rows_kept":21,"cut":false,"hidden":false,"merged":[[2,1,3,8]]}
[]
[]
[null,"Job Rotation Evaluator"]
[null,null,null,null,null,null,null,null,null,null,"Lists"]
[null,null,null,null,null,null,null,null,null,null,null,null,"Effort Values","Posture Values","Exertions / Minute Values"]
[null,"Station 4",null,null,null,null,null,null,null,null,"Relaxed Effort (barely noticeable)",null,"","",""]
[null,"Muscle Group","Exertion Effort","Rating","Exertion Posture","Rating","Exertions / Minute","Rating","Exertion Index",null,"Noticeable Effort (definite effort)",null,"","",""]
[null,"Neck / Upper Back",null,{"$f":"IF(M6=\"Relaxed Effort (barely noticeable)\",1,IF(M6=\"Noticeable Effort (definite effort)\",3,IF(M6=\"Obvious Effort (unchanged expression)\",6,IF(M6=\"Substantial Effort (changed expression)\",9, IF(M6=\"Maximal Effort (changed body mechanics)\", 13, \"\")))))","v":""},null,{"$f":"IF(N6=\"Near Neutral\", 1, IF(N6=\"Slight Deviation\", 1, IF(N6=\"Marked Deviation\", 1.5, IF(N6=\"Extreme Deviation\", 2, \"\"))))","v":""},null,{"$f":"IF(O6=\"Less than 4 / minute\", 0.5, IF(O6=\"4 -8 / minute\", 1, IF(O6=\"9 - 14 / minute\", 1.5, IF(O6=\"15 - 19 / minute\", 2, IF(O6=\"More than 20 / minute\", 3, \"\")))))","v":""},{"$f":"D8*F8*H8","v":{"$error":"#VALUE!"}},null,"Obvious Effort (unchanged expression)",null,"","",""]
[null,"R Upper Arm / Shoulder",null,{"$f":"IF(M7=\"Relaxed Effort (barely noticeable)\",1,IF(M7=\"Noticeable Effort (definite effort)\",3,IF(M7=\"Obvious Effort (unchanged expression)\",6,IF(M7=\"Substantial Effort (changed expression)\",9, IF(M7=\"Maximal Effort (changed body mechanics)\", 13, \"\")))))","v":""},null,{"$f":"IF(N7=\"Near Neutral\", 1, IF(N7=\"Slight Deviation\", 1, IF(N7=\"Marked Deviation\", 1.5, IF(N7=\"Extreme Deviation\", 2, \"\"))))","v":""},null,{"$f":"IF(O7=\"Less than 4 / minute\", 0.5, IF(O7=\"4 -8 / minute\", 1, IF(O7=\"9 - 14 / minute\", 1.5, IF(O7=\"15 - 19 / minute\", 2, IF(O7=\"More than 20 / minute\", 3, \"\")))))","v":""},{"$error":"#VALUE!"},null,"Substantial Effort (changed expression)",null,"","",""]
[null,"L Upper Arm / Shoulder",null,"",null,"",null,"",{"$error":"#VALUE!"},null,"Maximal Effort (changed body mechanics)",null,"","",""]
[null,"R Forearm / Elbow",null,"",null,"",null,"",{"$error":"#VALUE!"},null,null,null,"","",""]
[null,"L Forearm / Elbow",null,"",null,"",null,"",{"$error":"#VALUE!"},null,"Near Neutral",null,"","",""]
[null,"R Wrist / Fingers",null,"",null,"",null,"",{"$error":"#VALUE!"},null,"Slight Deviation",null,"","",""]
[null,"L Wrist / Fingers",null,"",null,"",null,"",{"$error":"#VALUE!"},null,"Marked Deviation",null,"","",""]
[null,"Trunk / Lower Back",null,"",null,"",null,"",{"$error":"#VALUE!"},null,"Extreme Deviation"]
[null,"Legs (foot pedal)",null,"",null,"",null,"",{"$error":"#VALUE!"}]
[null,null,null,null,null,null,null,null,null,null,"Less than 4 / minute"]
[null,null,null,null,null,null,null,null,null,null,"4 -8 / minute"]
[null,null,null,null,null,null,null,null,null,null,"9 - 14 / minute"]
[null,null,null,null,null,null,null,null,null,null,"15 - 19 / minute"]
[null,null,null,null,null,null,null,null,null,null,"More than 20 / minute"]

{"sheet":"Station 5","index":5,"n_rows":21,"n_cols":15,"rows_kept":21,"cut":false,"hidden":false,"merged":[[2,1,3,8]]}
[]
[]
[null,"Job Rotation Evaluator"]
[null,null,null,null,null,null,null,null,null,null,"Lists"]
[null,null,null,null,null,null,null,null,null,null,null,null,"Effort Values","Posture Values","Exertions / Minute Values"]
[null,"Station 5",null,null,null,null,null,null,null,null,"Relaxed Effort (barely noticeable)",null,"","",""]
[null,"Muscle Group","Exertion Effort","Rating","Exertion Posture","Rating","Exertions / Minute","Rating","Exertion Index",null,"Noticeable Effort (definite effort)",null,"","",""]
[null,"Neck / Upper Back",null,{"$f":"IF(M6=\"Relaxed Effort (barely noticeable)\",1,IF(M6=\"Noticeable Effort (definite effort)\",3,IF(M6=\"Obvious Effort (unchanged expression)\",6,IF(M6=\"Substantial Effort (changed expression)\",9, IF(M6=\"Maximal Effort (changed body mechanics)\", 13, \"\")))))","v":""},null,{"$f":"IF(N6=\"Near Neutral\", 1, IF(N6=\"Slight Deviation\", 1, IF(N6=\"Marked Deviation\", 1.5, IF(N6=\"Extreme Deviation\", 2, \"\"))))","v":""},null,{"$f":"IF(O6=\"Less than 4 / minute\", 0.5, IF(O6=\"4 -8 / minute\", 1, IF(O6=\"9 - 14 / minute\", 1.5, IF(O6=\"15 - 19 / minute\", 2, IF(O6=\"More than 20 / minute\", 3, \"\")))))","v":""},{"$f":"D8*F8*H8","v":{"$error":"#VALUE!"}},null,"Obvious Effort (unchanged expression)",null,"","",""]
[null,"R Upper Arm / Shoulder",null,{"$f":"IF(M7=\"Relaxed Effort (barely noticeable)\",1,IF(M7=\"Noticeable Effort (definite effort)\",3,IF(M7=\"Obvious Effort (unchanged expression)\",6,IF(M7=\"Substantial Effort (changed expression)\",9, IF(M7=\"Maximal Effort (changed body mechanics)\", 13, \"\")))))","v":""},null,{"$f":"IF(N7=\"Near Neutral\", 1, IF(N7=\"Slight Deviation\", 1, IF(N7=\"Marked Deviation\", 1.5, IF(N7=\"Extreme Deviation\", 2, \"\"))))","v":""},null,{"$f":"IF(O7=\"Less than 4 / minute\", 0.5, IF(O7=\"4 -8 / minute\", 1, IF(O7=\"9 - 14 / minute\", 1.5, IF(O7=\"15 - 19 / minute\", 2, IF(O7=\"More than 20 / minute\", 3, \"\")))))","v":""},{"$error":"#VALUE!"},null,"Substantial Effort (changed expression)",null,"","",""]
[null,"L Upper Arm / Shoulder",null,"",null,"",null,"",{"$error":"#VALUE!"},null,"Maximal Effort (changed body mechanics)",null,"","",""]
[null,"R Forearm / Elbow",null,"",null,"",null,"",{"$error":"#VALUE!"},null,null,null,"","",""]
[null,"L Forearm / Elbow",null,"",null,"",null,"",{"$error":"#VALUE!"},null,"Near Neutral",null,"","",""]
[null,"R Wrist / Fingers",null,"",null,"",null,"",{"$error":"#VALUE!"},null,"Slight Deviation",null,"","",""]
[null,"L Wrist / Fingers",null,"",null,"",null,"",{"$error":"#VALUE!"},null,"Marked Deviation",null,"","",""]
[null,"Trunk / Lower Back",null,"",null,"",null,"",{"$error":"#VALUE!"},null,"Extreme Deviation"]
[null,"Legs (foot pedal)",null,"",null,"",null,"",{"$error":"#VALUE!"}]
[null,null,null,null,null,null,null,null,null,null,"Less than 4 / minute"]
[null,null,null,null,null,null,null,null,null,null,"4 -8 / minute"]
[null,null,null,null,null,null,null,null,null,null,"9 - 14 / minute"]
[null,null,null,null,null,null,null,null,null,null,"15 - 19 / minute"]
[null,null,null,null,null,null,null,null,null,null,"More than 20 / minute"]

{"sheet":"Station 6","index":6,"n_rows":21,"n_cols":15,"rows_kept":21,"cut":false,"hidden":false,"merged":[[2,1,3,8]]}
[]
[]
[null,"Job Rotation Evaluator"]
[null,null,null,null,null,null,null,null,null,null,"Lists"]
[null,null,null,null,null,null,null,null,null,null,null,null,"Effort Values","Posture Values","Exertions / Minute Values"]
[null,"Station 6",null,null,null,null,null,null,null,null,"Relaxed Effort (barely noticeable)",null,"","",""]
[null,"Muscle Group","Exertion Effort","Rating","Exertion Posture","Rating","Exertions / Minute","Rating","Exertion Index",null,"Noticeable Effort (definite effort)",null,"","",""]
[null,"Neck / Upper Back",null,{"$f":"IF(M6=\"Relaxed Effort (barely noticeable)\",1,IF(M6=\"Noticeable Effort (definite effort)\",3,IF(M6=\"Obvious Effort (unchanged expression)\",6,IF(M6=\"Substantial Effort (changed expression)\",9, IF(M6=\"Maximal Effort (changed body mechanics)\", 13, \"\")))))","v":""},null,{"$f":"IF(N6=\"Near Neutral\", 1, IF(N6=\"Slight Deviation\", 1, IF(N6=\"Marked Deviation\", 1.5, IF(N6=\"Extreme Deviation\", 2, \"\"))))","v":""},null,{"$f":"IF(O6=\"Less than 4 / minute\", 0.5, IF(O6=\"4 -8 / minute\", 1, IF(O6=\"9 - 14 / minute\", 1.5, IF(O6=\"15 - 19 / minute\", 2, IF(O6=\"More than 20 / minute\", 3, \"\")))))","v":""},{"$f":"D8*F8*H8","v":{"$error":"#VALUE!"}},null,"Obvious Effort (unchanged expression)",null,"","",""]
[null,"R Upper Arm / Shoulder",null,{"$f":"IF(M7=\"Relaxed Effort (barely noticeable)\",1,IF(M7=\"Noticeable Effort (definite effort)\",3,IF(M7=\"Obvious Effort (unchanged expression)\",6,IF(M7=\"Substantial Effort (changed expression)\",9, IF(M7=\"Maximal Effort (changed body mechanics)\", 13, \"\")))))","v":""},null,{"$f":"IF(N7=\"Near Neutral\", 1, IF(N7=\"Slight Deviation\", 1, IF(N7=\"Marked Deviation\", 1.5, IF(N7=\"Extreme Deviation\", 2, \"\"))))","v":""},null,{"$f":"IF(O7=\"Less than 4 / minute\", 0.5, IF(O7=\"4 -8 / minute\", 1, IF(O7=\"9 - 14 / minute\", 1.5, IF(O7=\"15 - 19 / minute\", 2, IF(O7=\"More than 20 / minute\", 3, \"\")))))","v":""},{"$error":"#VALUE!"},null,"Substantial Effort (changed expression)",null,"","",""]
[null,"L Upper Arm / Shoulder",null,"",null,"",null,"",{"$error":"#VALUE!"},null,"Maximal Effort (changed body mechanics)",null,"","",""]
[null,"R Forearm / Elbow",null,"",null,"",null,"",{"$error":"#VALUE!"},null,null,null,"","",""]
[null,"L Forearm / Elbow",null,"",null,"",null,"",{"$error":"#VALUE!"},null,"Near Neutral",null,"","",""]
[null,"R Wrist / Fingers",null,"",null,"",null,"",{"$error":"#VALUE!"},null,"Slight Deviation",null,"","",""]
[null,"L Wrist / Fingers",null,"",null,"",null,"",{"$error":"#VALUE!"},null,"Marked Deviation",null,"","",""]
[null,"Trunk / Lower Back",null,"",null,"",null,"",{"$error":"#VALUE!"},null,"Extreme Deviation"]
[null,"Legs (foot pedal)",null,"",null,"",null,"",{"$error":"#VALUE!"}]
[null,null,null,null,null,null,null,null,null,null,"Less than 4 / minute"]
[null,null,null,null,null,null,null,null,null,null,"4 -8 / minute"]
[null,null,null,null,null,null,null,null,null,null,"9 - 14 / minute"]
[null,null,null,null,null,null,null,null,null,null,"15 - 19 / minute"]
[null,null,null,null,null,null,null,null,null,null,"More than 20 / minute"]

{"sheet":"Station 7","index":7,"n_rows":21,"n_cols":15,"rows_kept":21,"cut":false,"hidden":false,"merged":[[2,1,3,8]]}
[]
[]
[null,"Job Rotation Evaluator"]
[null,null,null,null,null,null,null,null,null,null,"Lists"]
[null,null,null,null,null,null,null,null,null,null,null,null,"Effort Values","Posture Values","Exertions / Minute Values"]
[null,"Station 7",null,null,null,null,null,null,null,null,"Relaxed Effort (barely noticeable)",null,"","",""]
[null,"Muscle Group","Exertion Effort","Rating","Exertion Posture","Rating","Exertions / Minute","Rating","Exertion Index",null,"Noticeable Effort (definite effort)",null,"","",""]
[null,"Neck / Upper Back",null,{"$f":"IF(M6=\"Relaxed Effort (barely noticeable)\",1,IF(M6=\"Noticeable Effort (definite effort)\",3,IF(M6=\"Obvious Effort (unchanged expression)\",6,IF(M6=\"Substantial Effort (changed expression)\",9, IF(M6=\"Maximal Effort (changed body mechanics)\", 13, \"\")))))","v":""},null,{"$f":"IF(N6=\"Near Neutral\", 1, IF(N6=\"Slight Deviation\", 1, IF(N6=\"Marked Deviation\", 1.5, IF(N6=\"Extreme Deviation\", 2, \"\"))))","v":""},null,{"$f":"IF(O6=\"Less than 4 / minute\", 0.5, IF(O6=\"4 -8 / minute\", 1, IF(O6=\"9 - 14 / minute\", 1.5, IF(O6=\"15 - 19 / minute\", 2, IF(O6=\"More than 20 / minute\", 3, \"\")))))","v":""},{"$f":"D8*F8*H8","v":{"$error":"#VALUE!"}},null,"Obvious Effort (unchanged expression)",null,"","",""]
[null,"R Upper Arm / Shoulder",null,{"$f":"IF(M7=\"Relaxed Effort (barely noticeable)\",1,IF(M7=\"Noticeable Effort (definite effort)\",3,IF(M7=\"Obvious Effort (unchanged expression)\",6,IF(M7=\"Substantial Effort (changed expression)\",9, IF(M7=\"Maximal Effort (changed body mechanics)\", 13, \"\")))))","v":""},null,{"$f":"IF(N7=\"Near Neutral\", 1, IF(N7=\"Slight Deviation\", 1, IF(N7=\"Marked Deviation\", 1.5, IF(N7=\"Extreme Deviation\", 2, \"\"))))","v":""},null,{"$f":"IF(O7=\"Less than 4 / minute\", 0.5, IF(O7=\"4 -8 / minute\", 1, IF(O7=\"9 - 14 / minute\", 1.5, IF(O7=\"15 - 19 / minute\", 2, IF(O7=\"More than 20 / minute\", 3, \"\")))))","v":""},{"$error":"#VALUE!"},null,"Substantial Effort (changed expression)",null,"","",""]
[null,"L Upper Arm / Shoulder",null,"",null,"",null,"",{"$error":"#VALUE!"},null,"Maximal Effort (changed body mechanics)",null,"","",""]
[null,"R Forearm / Elbow",null,"",null,"",null,"",{"$error":"#VALUE!"},null,null,null,"","",""]
[null,"L Forearm / Elbow",null,"",null,"",null,"",{"$error":"#VALUE!"},null,"Near Neutral",null,"","",""]
[null,"R Wrist / Fingers",null,"",null,"",null,"",{"$error":"#VALUE!"},null,"Slight Deviation",null,"","",""]
[null,"L Wrist / Fingers",null,"",null,"",null,"",{"$error":"#VALUE!"},null,"Marked Deviation",null,"","",""]
[null,"Trunk / Lower Back",null,"",null,"",null,"",{"$error":"#VALUE!"},null,"Extreme Deviation"]
[null,"Legs (foot pedal)",null,"",null,"",null,"",{"$error":"#VALUE!"}]
[null,null,null,null,null,null,null,null,null,null,"Less than 4 / minute"]
[null,null,null,null,null,null,null,null,null,null,"4 -8 / minute"]
[null,null,null,null,null,null,null,null,null,null,"9 - 14 / minute"]
[null,null,null,null,null,null,null,null,null,null,"15 - 19 / minute"]
[null,null,null,null,null,null,null,null,null,null,"More than 20 / minute"]

{"sheet":"Station 8","index":8,"n_rows":21,"n_cols":15,"rows_kept":21,"cut":false,"hidden":false,"merged":[[2,1,3,8]]}
[]
[]
[null,"Job Rotation Evaluator"]
[null,null,null,null,null,null,null,null,null,null,"Lists"]
[null,null,null,null,null,null,null,null,null,null,null,null,"Effort Values","Posture Values","Exertions / Minute Values"]
[null,"Station 8",null,null,null,null,null,null,null,null,"Relaxed Effort (barely noticeable)",null,"","",""]
[null,"Muscle Group","Exertion Effort","Rating","Exertion Posture","Rating","Exertions / Minute","Rating","Exertion Index",null,"Noticeable Effort (definite effort)",null,"","",""]
[null,"Neck / Upper Back",null,{"$f":"IF(M6=\"Relaxed Effort (barely noticeable)\",1,IF(M6=\"Noticeable Effort (definite effort)\",3,IF(M6=\"Obvious Effort (unchanged expression)\",6,IF(M6=\"Substantial Effort (changed expression)\",9, IF(M6=\"Maximal Effort (changed body mechanics)\", 13, \"\")))))","v":""},null,{"$f":"IF(N6=\"Near Neutral\", 1, IF(N6=\"Slight Deviation\", 1, IF(N6=\"Marked Deviation\", 1.5, IF(N6=\"Extreme Deviation\", 2, \"\"))))","v":""},null,{"$f":"IF(O6=\"Less than 4 / minute\", 0.5, IF(O6=\"4 -8 / minute\", 1, IF(O6=\"9 - 14 / minute\", 1.5, IF(O6=\"15 - 19 / minute\", 2, IF(O6=\"More than 20 / minute\", 3, \"\")))))","v":""},{"$f":"D8*F8*H8","v":{"$error":"#VALUE!"}},null,"Obvious Effort (unchanged expression)",null,"","",""]
[null,"R Upper Arm / Shoulder",null,{"$f":"IF(M7=\"Relaxed Effort (barely noticeable)\",1,IF(M7=\"Noticeable Effort (definite effort)\",3,IF(M7=\"Obvious Effort (unchanged expression)\",6,IF(M7=\"Substantial Effort (changed expression)\",9, IF(M7=\"Maximal Effort (changed body mechanics)\", 13, \"\")))))","v":""},null,{"$f":"IF(N7=\"Near Neutral\", 1, IF(N7=\"Slight Deviation\", 1, IF(N7=\"Marked Deviation\", 1.5, IF(N7=\"Extreme Deviation\", 2, \"\"))))","v":""},null,{"$f":"IF(O7=\"Less than 4 / minute\", 0.5, IF(O7=\"4 -8 / minute\", 1, IF(O7=\"9 - 14 / minute\", 1.5, IF(O7=\"15 - 19 / minute\", 2, IF(O7=\"More than 20 / minute\", 3, \"\")))))","v":""},{"$error":"#VALUE!"},null,"Substantial Effort (changed expression)",null,"","",""]
[null,"L Upper Arm / Shoulder",null,"",null,"",null,"",{"$error":"#VALUE!"},null,"Maximal Effort (changed body mechanics)",null,"","",""]
[null,"R Forearm / Elbow",null,"",null,"",null,"",{"$error":"#VALUE!"},null,null,null,"","",""]
[null,"L Forearm / Elbow",null,"",null,"",null,"",{"$error":"#VALUE!"},null,"Near Neutral",null,"","",""]
[null,"R Wrist / Fingers",null,"",null,"",null,"",{"$error":"#VALUE!"},null,"Slight Deviation",null,"","",""]
[null,"L Wrist / Fingers",null,"",null,"",null,"",{"$error":"#VALUE!"},null,"Marked Deviation",null,"","",""]
[null,"Trunk / Lower Back",null,"",null,"",null,"",{"$error":"#VALUE!"},null,"Extreme Deviation"]
[null,"Legs (foot pedal)",null,"",null,"",null,"",{"$error":"#VALUE!"}]
[null,null,null,null,null,null,null,null,null,null,"Less than 4 / minute"]
[null,null,null,null,null,null,null,null,null,null,"4 -8 / minute"]
[null,null,null,null,null,null,null,null,null,null,"9 - 14 / minute"]
[null,null,null,null,null,null,null,null,null,null,"15 - 19 / minute"]
[null,null,null,null,null,null,null,null,null,null,"More than 20 / minute"]

{"sheet":"Station 9","index":9,"n_rows":21,"n_cols":15,"rows_kept":21,"cut":false,"hidden":false,"merged":[[2,1,3,8]]}
[]
[]
[null,"Job Rotation Evaluator"]
[null,null,null,null,null,null,null,null,null,null,"Lists"]
[null,null,null,null,null,null,null,null,null,null,null,null,"Effort Values","Posture Values","Exertions / Minute Values"]
[null,"Station 9",null,null,null,null,null,null,null,null,"Relaxed Effort (barely noticeable)",null,"","",""]
[null,"Muscle Group","Exertion Effort","Rating","Exertion Posture","Rating","Exertions / Minute","Rating","Exertion Index",null,"Noticeable Effort (definite effort)",null,"","",""]
[null,"Neck / Upper Back",null,{"$f":"IF(M6=\"Relaxed Effort (barely noticeable)\",1,IF(M6=\"Noticeable Effort (definite effort)\",3,IF(M6=\"Obvious Effort (unchanged expression)\",6,IF(M6=\"Substantial Effort (changed expression)\",9, IF(M6=\"Maximal Effort (changed body mechanics)\", 13, \"\")))))","v":""},null,{"$f":"IF(N6=\"Near Neutral\", 1, IF(N6=\"Slight Deviation\", 1, IF(N6=\"Marked Deviation\", 1.5, IF(N6=\"Extreme Deviation\", 2, \"\"))))","v":""},null,{"$f":"IF(O6=\"Less than 4 / minute\", 0.5, IF(O6=\"4 -8 / minute\", 1, IF(O6=\"9 - 14 / minute\", 1.5, IF(O6=\"15 - 19 / minute\", 2, IF(O6=\"More than 20 / minute\", 3, \"\")))))","v":""},{"$f":"D8*F8*H8","v":{"$error":"#VALUE!"}},null,"Obvious Effort (unchanged expression)",null,"","",""]
[null,"R Upper Arm / Shoulder",null,{"$f":"IF(M7=\"Relaxed Effort (barely noticeable)\",1,IF(M7=\"Noticeable Effort (definite effort)\",3,IF(M7=\"Obvious Effort (unchanged expression)\",6,IF(M7=\"Substantial Effort (changed expression)\",9, IF(M7=\"Maximal Effort (changed body mechanics)\", 13, \"\")))))","v":""},null,{"$f":"IF(N7=\"Near Neutral\", 1, IF(N7=\"Slight Deviation\", 1, IF(N7=\"Marked Deviation\", 1.5, IF(N7=\"Extreme Deviation\", 2, \"\"))))","v":""},null,{"$f":"IF(O7=\"Less than 4 / minute\", 0.5, IF(O7=\"4 -8 / minute\", 1, IF(O7=\"9 - 14 / minute\", 1.5, IF(O7=\"15 - 19 / minute\", 2, IF(O7=\"More than 20 / minute\", 3, \"\")))))","v":""},{"$error":"#VALUE!"},null,"Substantial Effort (changed expression)",null,"","",""]
[null,"L Upper Arm / Shoulder",null,"",null,"",null,"",{"$error":"#VALUE!"},null,"Maximal Effort (changed body mechanics)",null,"","",""]
[null,"R Forearm / Elbow",null,"",null,"",null,"",{"$error":"#VALUE!"},null,null,null,"","",""]
[null,"L Forearm / Elbow",null,"",null,"",null,"",{"$error":"#VALUE!"},null,"Near Neutral",null,"","",""]
[null,"R Wrist / Fingers",null,"",null,"",null,"",{"$error":"#VALUE!"},null,"Slight Deviation",null,"","",""]
[null,"L Wrist / Fingers",null,"",null,"",null,"",{"$error":"#VALUE!"},null,"Marked Deviation",null,"","",""]
[null,"Trunk / Lower Back",null,"",null,"",null,"",{"$error":"#VALUE!"},null,"Extreme Deviation"]
[null,"Legs (foot pedal)",null,"",null,"",null,"",{"$error":"#VALUE!"}]
[null,null,null,null,null,null,null,null,null,null,"Less than 4 / minute"]
[null,null,null,null,null,null,null,null,null,null,"4 -8 / minute"]
[null,null,null,null,null,null,null,null,null,null,"9 - 14 / minute"]
[null,null,null,null,null,null,null,null,null,null,"15 - 19 / minute"]
[null,null,null,null,null,null,null,null,null,null,"More than 20 / minute"]

{"sheet":"Station 10","index":10,"n_rows":21,"n_cols":15,"rows_kept":21,"cut":false,"hidden":false,"merged":[[2,1,3,8]]}
[]
[]
[null,"Job Rotation Evaluator"]
[null,null,null,null,null,null,null,null,null,null,"Lists"]
[null,null,null,null,null,null,null,null,null,null,null,null,"Effort Values","Posture Values","Exertions / Minute Values"]
[null,"Station 10",null,null,null,null,null,null,null,null,"Relaxed Effort (barely noticeable)",null,"","",""]
[null,"Muscle Group","Exertion Effort","Rating","Exertion Posture","Rating","Exertions / Minute","Rating","Exertion Index",null,"Noticeable Effort (definite effort)",null,"","",""]
[null,"Neck / Upper Back",null,{"$f":"IF(M6=\"Relaxed Effort (barely noticeable)\",1,IF(M6=\"Noticeable Effort (definite effort)\",3,IF(M6=\"Obvious Effort (unchanged expression)\",6,IF(M6=\"Substantial Effort (changed expression)\",9, IF(M6=\"Maximal Effort (changed body mechanics)\", 13, \"\")))))","v":""},null,{"$f":"IF(N6=\"Near Neutral\", 1, IF(N6=\"Slight Deviation\", 1, IF(N6=\"Marked Deviation\", 1.5, IF(N6=\"Extreme Deviation\", 2, \"\"))))","v":""},null,{"$f":"IF(O6=\"Less than 4 / minute\", 0.5, IF(O6=\"4 -8 / minute\", 1, IF(O6=\"9 - 14 / minute\", 1.5, IF(O6=\"15 - 19 / minute\", 2, IF(O6=\"More than 20 / minute\", 3, \"\")))))","v":""},{"$f":"D8*F8*H8","v":{"$error":"#VALUE!"}},null,"Obvious Effort (unchanged expression)",null,"","",""]
[null,"R Upper Arm / Shoulder",null,{"$f":"IF(M7=\"Relaxed Effort (barely noticeable)\",1,IF(M7=\"Noticeable Effort (definite effort)\",3,IF(M7=\"Obvious Effort (unchanged expression)\",6,IF(M7=\"Substantial Effort (changed expression)\",9, IF(M7=\"Maximal Effort (changed body mechanics)\", 13, \"\")))))","v":""},null,{"$f":"IF(N7=\"Near Neutral\", 1, IF(N7=\"Slight Deviation\", 1, IF(N7=\"Marked Deviation\", 1.5, IF(N7=\"Extreme Deviation\", 2, \"\"))))","v":""},null,{"$f":"IF(O7=\"Less than 4 / minute\", 0.5, IF(O7=\"4 -8 / minute\", 1, IF(O7=\"9 - 14 / minute\", 1.5, IF(O7=\"15 - 19 / minute\", 2, IF(O7=\"More than 20 / minute\", 3, \"\")))))","v":""},{"$error":"#VALUE!"},null,"Substantial Effort (changed expression)",null,"","",""]
[null,"L Upper Arm / Shoulder",null,"",null,"",null,"",{"$error":"#VALUE!"},null,"Maximal Effort (changed body mechanics)",null,"","",""]
[null,"R Forearm / Elbow",null,"",null,"",null,"",{"$error":"#VALUE!"},null,null,null,"","",""]
[null,"L Forearm / Elbow",null,"",null,"",null,"",{"$error":"#VALUE!"},null,"Near Neutral",null,"","",""]
[null,"R Wrist / Fingers",null,"",null,"",null,"",{"$error":"#VALUE!"},null,"Slight Deviation",null,"","",""]
[null,"L Wrist / Fingers",null,"",null,"",null,"",{"$error":"#VALUE!"},null,"Marked Deviation",null,"","",""]
[null,"Trunk / Lower Back",null,"",null,"",null,"",{"$error":"#VALUE!"},null,"Extreme Deviation"]
[null,"Legs (foot pedal)",null,"",null,"",null,"",{"$error":"#VALUE!"}]
[null,null,null,null,null,null,null,null,null,null,"Less than 4 / minute"]
[null,null,null,null,null,null,null,null,null,null,"4 -8 / minute"]
[null,null,null,null,null,null,null,null,null,null,"9 - 14 / minute"]
[null,null,null,null,null,null,null,null,null,null,"15 - 19 / minute"]
[null,null,null,null,null,null,null,null,null,null,"More than 20 / minute"]